fUST/lending_fUST_20250924
["ID","MTS","AMOUNT","RATE_DAILY","PERIOD"]
[387396629,1758712240215,-480.0,0.00019178,2]
[387396630,1758712240224,-480.0,0.00019178,2]
[387396631,1758712240233,-2260.39,0.00019178,2]
[387396632,1758712240243,-380.81743113,0.00019178,2]
[387396633,1758712240252,-480.0,0.00019178,2]
[387396634,1758712240262,-480.0,0.00019178,2]
[387396636,1758712240271,-480.0,0.00019178,2]
[387396637,1758712240281,-1901.05,0.00019178,2]
[387396638,1758712240290,-480.0,0.00019178,2]
[387396640,1758712240299,-480.0,0.00019178,2]
[387396642,1758712240309,-841.36,0.00019178,2]
[387396644,1758712240318,-480.0,0.00019178,2]
[387396645,1758712240326,-480.0,0.00019178,2]
[387396646,1758712240335,-283.47,0.00019178,2]
[387396647,1758712240345,-480.0,0.00019178,2]
[387396648,1758712240354,-480.0,0.00019178,2]
[387396649,1758712240363,-974.9,0.00019178,2]
[387396650,1758712240373,-480.0,0.00019178,2]
[387396651,1758712240382,-480.0,0.00019178,2]
[387396652,1758712240391,-3459.54,0.00019178,2]
[387396653,1758712240401,-480.0,0.00019178,2]
[387396654,1758712240410,-480.0,0.00019178,2]
[387396655,1758712240420,-480.0,0.00019178,2]
[387396656,1758712240429,-480.0,0.00019178,2]
[387396657,1758712240446,-1848.29,0.00019178,2]
[387396658,1758712240459,-480.0,0.00019178,2]
[387396659,1758712240469,-480.0,0.00019178,2]
[387396660,1758712240479,-480.0,0.00019178,2]
[387396661,1758712240489,-558.0548508,0.00019178,2]
[387396662,1758712240499,-480.0,0.00019178,2]
[387396663,1758712240509,-480.0,0.00019178,2]
[387396665,1758712240518,-480.0,0.00019178,2]
[387396666,1758712240528,-480.0,0.00019178,2]
[387396667,1758712240653,-480.0,0.00019178,2]
[387396668,1758712240663,-480.0,0.00019178,2]
[387396669,1758712240673,-480.0,0.00019178,2]
[387396670,1758712240682,-480.0,0.00019178,2]
[387396671,1758712240692,-480.0,0.00019178,2]
[387396672,1758712240702,-480.0,0.00019178,2]
[387396673,1758712240711,-480.0,0.00019178,2]
[387396674,1758712240721,-480.0,0.00019178,2]
[387396675,1758712240731,-480.0,0.00019178,2]
[387396676,1758712240741,-480.0,0.00019178,2]
[387396678,1758712240750,-480.0,0.00019178,2]
[387396679,1758712240760,-480.0,0.00019178,2]
[387396680,1758712240769,-480.0,0.00019178,2]
[387396681,1758712240779,-480.0,0.00019178,2]
[387396682,1758712240788,-480.0,0.00019178,2]
[387396683,1758712240797,-480.0,0.00019178,2]
[387396684,1758712240806,-498.35,0.00019178,2]
[387396685,1758712240815,-821.99,0.00019178,2]
[387396686,1758712240828,-840.33,0.00019178,2]
[387396687,1758712240838,-480.0,0.00019178,2]
[387396688,1758712240847,-480.0,0.00019178,2]
[387396689,1758712240856,-815.98,0.00019178,2]
[387396690,1758712240866,-781.85,0.00019178,2]
[387396691,1758712240875,-480.0,0.00019178,2]
[387396692,1758712240884,-485.63737398,0.00019178,2]
[387396693,1758712240893,-480.0,0.00019178,2]
[387396694,1758712240902,-480.0,0.00019178,2]
[387396695,1758712240911,-480.0,0.00019178,2]
[387396696,1758712240920,-544.68,0.00019178,2]
[387396697,1758712240930,-932.22,0.00019178,2]
[387396698,1758712240939,-480.0,0.00019178,2]
[387396699,1758712240948,-480.0,0.00019178,2]
[387396700,1758712240957,-480.0,0.00019178,2]
[387396701,1758712240967,-480.0,0.00019178,2]
[387396702,1758712240979,-480.0,0.00019178,2]
[387396703,1758712240990,-480.0,0.00019178,2]
[387396704,1758712240999,-480.0,0.00019178,2]
[387396705,1758712241009,-480.0,0.00019178,2]
[387396706,1758712241018,-480.0,0.00019178,2]
[387396707,1758712241027,-581.65123464,0.00019178,2]
[387396708,1758712241036,-480.0,0.00019178,2]
[387396709,1758712241046,-480.0,0.00019178,2]
[387396710,1758712241055,-480.0,0.00019178,2]
[387396711,1758712241063,-480.0,0.00019178,2]
[387396712,1758712241074,-480.0,0.00019178,2]
[387396713,1758712241083,-756.16,0.00019178,2]
[387396714,1758712241092,-489.48865683,0.00019178,2]
[387396715,1758712241101,-480.0,0.00019178,2]
[387396716,1758712241111,-246.52852325,0.00019178,2]
[387396717,1758712241119,-494.62463786,0.00019178,2]
[387396718,1758712241129,-480.0,0.00019178,2]
[387396719,1758712241138,-516.49279421,0.00019178,2]
[387396720,1758712241147,-480.0,0.00019178,2]
[387396721,1758712241156,-480.0,0.00019178,2]
[387396722,1758712241165,-480.0,0.00019178,2]
[387396723,1758712241174,-480.0,0.00019178,2]
[387396724,1758712241184,-480.0,0.00019178,2]
[387396725,1758712241193,-480.0,0.00019178,2]
[387396726,1758712241202,-480.0,0.00019178,2]
[387396727,1758712241212,-480.0,0.00019178,2]
[387396728,1758712241221,-480.0,0.00019178,2]
[387396729,1758712241231,-480.0,0.00019178,2]
[387396730,1758712241241,-480.0,0.00019178,2]
[387396731,1758712241251,-1726.74,0.00019178,2]
[387396732,1758712241260,-480.0,0.00019178,2]
[387396733,1758712241269,-480.0,0.00019178,2]
[387396734,1758712241278,-733.22,0.00019178,2]
[387396735,1758712241288,-480.0,0.00019178,2]
[387396736,1758712241297,-480.0,0.00019178,2]
[387396737,1758712241306,-480.0,0.00019178,2]
[387396738,1758712241316,-480.0,0.00019178,2]
[387396739,1758712241325,-480.0,0.00019178,2]
[387396740,1758712241335,-480.0,0.00019178,2]
[387396741,1758712241344,-268.42383271,0.00019178,2]
[387396742,1758712241354,-480.0,0.00019178,2]
[387396743,1758712241363,-480.0,0.00019178,2]
[387396744,1758712241373,-480.0,0.00019178,2]
[387396745,1758712241382,-512.90134597,0.00019178,2]
[387396746,1758712241391,-480.0,0.00019178,2]
[387396747,1758712241400,-716.15,0.00019178,2]
[387396748,1758712241409,-480.0,0.00019178,2]
[387396749,1758712241418,-165.19029107,0.00019178,2]
[387396750,1758712241427,-480.0,0.00019178,2]
[387396751,1758712241436,-154.76423381,0.00019178,2]
[387396752,1758712241446,-367.05011251,0.00019178,2]
[387396753,1758712241455,-480.0,0.00019178,2]
[387396754,1758712241466,-480.0,0.00019178,2]
[387396755,1758712241475,-481.02707043,0.00019178,2]
[387396756,1758712241485,-480.0,0.00019178,2]
[387396757,1758712241495,-480.0,0.00019178,2]
[387396758,1758712241505,-480.0,0.00019178,2]
[387396759,1758712241514,-480.0,0.00019178,2]
[387396760,1758712241524,-1328.1,0.00019178,2]
[387396761,1758712241533,-9181.58278061,0.00019273,2]
[387396762,1758712241542,-500.0,0.00019275,2]
[387396763,1758712241551,-151.0,0.000193,2]
[387396764,1758712241562,-350.48,0.0001935,2]
[387396765,1758712241571,-1000.0,0.00019351,2]
[387396766,1758712241581,-1000.0,0.00019351,2]
[387396767,1758712241590,-1058.77,0.00019351,2]
[387396768,1758712241600,-361347.08578193,0.00019352,2]
[387396769,1758712241610,-500.0,0.00019373,2]
[387396770,1758712241619,-500.0,0.00019373,2]
[387396771,1758712241629,-500.0,0.00019373,2]
[387396772,1758712241638,-500.0,0.00019373,2]
[387396773,1758712241647,-500.0,0.00019373,2]
[387396774,1758712241656,-500.72783657,0.00019373,2]
[387396775,1758712241665,-462.21015604,0.00019452,2]
[387396776,1758712241675,-480.0,0.00019452,2]
[387396777,1758712241684,-480.0,0.00019452,2]
[387396778,1758712241693,-480.0,0.00019452,2]
[387396779,1758712241703,-480.0,0.00019452,2]
[387396780,1758712241712,-480.0,0.00019452,2]
[387396781,1758712241721,-480.0,0.00019452,2]
[387396782,1758712241731,-480.0,0.00019452,2]
[387396783,1758712241741,-480.0,0.00019452,2]
[387396784,1758712241751,-480.0,0.00019452,2]
[387396785,1758712241760,-480.0,0.00019452,2]
[387396786,1758712241770,-480.0,0.00019452,2]
[387396787,1758712241779,-579.99628243,0.00019452,2]
[387396788,1758712241788,-480.0,0.00019452,2]
[387396789,1758712241798,-480.0,0.00019452,2]
[387396790,1758712241808,-480.0,0.00019452,2]
[387396791,1758712241817,-480.0,0.00019452,2]
[387396792,1758712241829,-480.0,0.00019452,2]
[387396793,1758712241839,-480.0,0.00019452,2]
[387396794,1758712241848,-480.0,0.00019452,2]
[387396795,1758712241857,-480.0,0.00019452,2]
[387396796,1758712241867,-480.0,0.00019452,2]
[387396797,1758712241876,-504.27,0.00019452,2]
[387396798,1758712241885,-480.0,0.00019452,2]
[387396799,1758712241894,-480.0,0.00019452,2]
[387396800,1758712241904,-438.28898516,0.00019452,2]
[387396801,1758712241914,-480.0,0.00019452,2]
[387396802,1758712241923,-480.0,0.00019452,2]
[387396803,1758712241932,-480.0,0.00019452,2]
[387396804,1758712241941,-480.0,0.00019452,2]
[387396805,1758712241951,-480.0,0.00019452,2]
[387396806,1758712241960,-503.99361079,0.00019452,2]
[387396807,1758712241969,-480.0,0.00019452,2]
[387396808,1758712241979,-480.0,0.00019452,2]
[387396809,1758712241988,-480.0,0.00019452,2]
[387396810,1758712241998,-480.0,0.00019452,2]
[387396811,1758712242008,-480.0,0.00019452,2]
[387396812,1758712242019,-260.30571259,0.00019452,2]
[387396813,1758712242028,-480.0,0.00019452,2]
[387396814,1758712242037,-523.97,0.00019452,2]
[387396815,1758712242047,-480.0,0.00019452,2]
[387396816,1758712242056,-480.0,0.00019452,2]
[387396817,1758712242065,-480.0,0.00019452,2]
[387396818,1758712242075,-480.0,0.00019452,2]
[387396819,1758712242084,-480.0,0.00019452,2]
[387396820,1758712242093,-480.0,0.00019452,2]
[387396821,1758712242103,-480.0,0.00019452,2]
[387396822,1758712242112,-465.07036988,0.00019452,2]
[387396823,1758712242121,-480.0,0.00019452,2]
[387396824,1758712242130,-480.0,0.00019452,2]
[387396825,1758712242140,-480.0,0.00019452,2]
[387396826,1758712242149,-480.0,0.00019452,2]
[387396827,1758712242158,-2260.39,0.00019452,2]
[387396828,1758712242167,-480.0,0.00019452,2]
[387396829,1758712242177,-480.0,0.00019452,2]
[387396830,1758712242186,-1901.05,0.00019452,2]
[387396831,1758712242195,-480.0,0.00019452,2]
[387396832,1758712242205,-841.36,0.00019452,2]
[387396833,1758712242214,-480.0,0.00019452,2]
[387396834,1758712242224,-288.02002973,0.00019452,2]
[387396835,1758712242233,-480.0,0.00019452,2]
[387396836,1758712242242,-480.0,0.00019452,2]
[387396837,1758712242251,-974.9,0.00019452,2]
[387396838,1758712242261,-3459.54,0.00019452,2]
[387396839,1758712242270,-480.0,0.00019452,2]
[387396840,1758712242279,-480.0,0.00019452,2]
[387396841,1758712242288,-1848.29,0.00019452,2]
[387396842,1758712242298,-480.0,0.00019452,2]
[387396843,1758712242307,-480.0,0.00019452,2]
[387396844,1758712242316,-480.0,0.00019452,2]
[387396845,1758712242326,-480.0,0.00019452,2]
[387396846,1758712242335,-480.0,0.00019452,2]
[387396847,1758712242344,-480.0,0.00019452,2]
[387396848,1758712242354,-480.0,0.00019452,2]
[387396849,1758712242365,-480.0,0.00019452,2]
[387396850,1758712242380,-480.0,0.00019452,2]
[387396851,1758712242389,-480.0,0.00019452,2]
[387396852,1758712242406,-480.0,0.00019452,2]
[387396853,1758712242422,-480.0,0.00019452,2]
[387396854,1758712242432,-292.17493305,0.00019452,2]
[387396855,1758712242441,-480.0,0.00019452,2]
[387396856,1758712242451,-480.0,0.00019452,2]
[387396857,1758712242460,-480.0,0.00019452,2]
[387396858,1758712242470,-480.0,0.00019452,2]
[387396859,1758712242479,-480.0,0.00019452,2]
[387396860,1758712242488,-480.0,0.00019452,2]
[387396861,1758712242498,-480.0,0.00019452,2]
[387396862,1758712242508,-480.0,0.00019452,2]
[387396863,1758712242517,-498.35,0.00019452,2]
[387396864,1758712242527,-821.99,0.00019452,2]
[387396865,1758712242536,-840.33,0.00019452,2]
[387396866,1758712242545,-480.0,0.00019452,2]
[387396867,1758712242554,-815.98,0.00019452,2]
[387396868,1758712242563,-480.0,0.00019452,2]
[387396869,1758712242573,-480.0,0.00019452,2]
[387396870,1758712242582,-480.0,0.00019452,2]
[387396871,1758712242591,-544.68,0.00019452,2]
[387396872,1758712242601,-932.22,0.00019452,2]
[387396873,1758712242610,-480.0,0.00019452,2]
[387396874,1758712242619,-480.0,0.00019452,2]
[387396875,1758712242629,-480.0,0.00019452,2]
[387396876,1758712242638,-480.0,0.00019452,2]
[387396877,1758712242648,-480.0,0.00019452,2]
[387396878,1758712242657,-480.0,0.00019452,2]
[387396879,1758712242667,-621.3090608,0.00019452,2]
[387396880,1758712242676,-480.0,0.00019452,2]
[387396881,1758712242685,-480.0,0.00019452,2]
[387396882,1758712242776,-756.16,0.00019452,2]
[387396883,1758712242786,-480.0,0.00019452,2]
[387396884,1758712242795,-190.54448709,0.00019452,2]
[387396885,1758712242805,-480.0,0.00019452,2]
[387396886,1758712242814,-186.8897468,0.00019452,2]
[387396887,1758712242824,-480.0,0.00019452,2]
[387396888,1758712242836,-480.0,0.00019452,2]
[387396889,1758712242846,-1726.74,0.00019452,2]
[387396890,1758712242855,-733.22,0.00019452,2]
[387396891,1758712242864,-480.0,0.00019452,2]
[387396892,1758712242873,-480.0,0.00019452,2]
[387396893,1758712242883,-262.3187295,0.00019452,2]
[387396894,1758712242892,-480.0,0.00019452,2]
[387396895,1758712242901,-480.0,0.00019452,2]
[387396896,1758712242911,-716.15,0.00019452,2]
[387396897,1758712242920,-480.0,0.00019452,2]
[387396898,1758712242929,-1328.1,0.00019452,2]
[387396899,1758712242939,-500.0,0.00019473,2]
[387396900,1758712242948,-500.0,0.00019473,2]
[387396902,1758712242958,-500.0,0.00019473,2]
[387396903,1758712242967,-500.0,0.00019473,2]
[387396904,1758712242976,-891.79,0.00019509,2]
[387396905,1758712242986,-376.21725884,0.00019562,2]
[387396906,1758712242996,-768.03267232,0.00019562,2]
[387396907,1758712243005,-151.0,0.000196,2]
[387396908,1758712243014,-1000.0,0.000196,2]
[387396909,1758712243024,-187.18132043,0.00019695,2]
[387396910,1758712243034,-2000.0,0.000197,2]
[387396911,1758712243043,-490.42354924,0.00019726,2]
[387396912,1758712243053,-480.0,0.00019726,2]
[387396913,1758712243062,-480.0,0.00019726,2]
[387396915,1758712243072,-480.0,0.00019726,2]
[387396916,1758712243081,-480.0,0.00019726,2]
[387396917,1758712243090,-480.0,0.00019726,2]
[387396918,1758712243099,-492.46005353,0.00019726,2]
[387396919,1758712243108,-480.0,0.00019726,2]
[387396920,1758712243118,-485.82142508,0.00019726,2]
[387396921,1758712243127,-484.20275059,0.00019726,2]
[387396922,1758712243137,-480.0,0.00019726,2]
[387396923,1758712243147,-280.76317981,0.00019726,2]
[387396924,1758712243156,-480.0,0.00019726,2]
[387396925,1758712243165,-480.0,0.00019726,2]
[387396926,1758712243175,-504.27,0.00019726,2]
[387396927,1758712243184,-480.0,0.00019726,2]
[387396928,1758712243193,-480.0,0.00019726,2]
[387396929,1758712243203,-480.0,0.00019726,2]
[387396930,1758712243212,-480.0,0.00019726,2]
[387396931,1758712243222,-480.0,0.00019726,2]
[387396932,1758712243232,-480.0,0.00019726,2]
[387396933,1758712243241,-480.0,0.00019726,2]
[387396934,1758712243251,-480.0,0.00019726,2]
[387396935,1758712243261,-480.0,0.00019726,2]
[387396936,1758712243270,-480.0,0.00019726,2]
[387396937,1758712243280,-480.0,0.00019726,2]
[387396938,1758712243289,-523.97,0.00019726,2]
[387396939,1758712243299,-487.99665548,0.00019726,2]
[387396940,1758712243308,-480.0,0.00019726,2]
[387396941,1758712243316,-480.0,0.00019726,2]
[387396942,1758712243326,-480.0,0.00019726,2]
[387396943,1758712243335,-480.0,0.00019726,2]
[387396944,1758712243344,-480.0,0.00019726,2]
[387396945,1758712243354,-480.0,0.00019726,2]
[387396946,1758712243363,-480.0,0.00019726,2]
[387396947,1758712243373,-2260.39,0.00019726,2]
[387396948,1758712243382,-480.0,0.00019726,2]
[387396950,1758712243391,-480.0,0.00019726,2]
[387396951,1758712243401,-1901.05,0.00019726,2]
[387396952,1758712243410,-480.0,0.00019726,2]
[387396953,1758712243419,-841.36,0.00019726,2]
[387396954,1758712243429,-480.0,0.00019726,2]
[387396955,1758712243438,-480.0,0.00019726,2]
[387396956,1758712243448,-974.9,0.00019726,2]
[387396957,1758712243457,-322.97889396,0.00019726,2]
[387396958,1758712243466,-3459.54,0.00019726,2]
[387396959,1758712243476,-480.0,0.00019726,2]
[387396960,1758712243486,-480.0,0.00019726,2]
[387396961,1758712243495,-1848.29,0.00019726,2]
[387396962,1758712243504,-480.0,0.00019726,2]
[387396963,1758712243513,-480.0,0.00019726,2]
[387396964,1758712243523,-480.0,0.00019726,2]
[387396965,1758712243533,-480.0,0.00019726,2]
[387396966,1758712243542,-480.0,0.00019726,2]
[387396967,1758712243551,-480.0,0.00019726,2]
[387396968,1758712243560,-506.89163456,0.00019726,2]
[387396969,1758712243570,-480.0,0.00019726,2]
[387396970,1758712243579,-480.0,0.00019726,2]
[387396971,1758712243589,-480.0,0.00019726,2]
[387396972,1758712243599,-480.0,0.00019726,2]
[387396973,1758712243608,-480.0,0.00019726,2]
[387396974,1758712243617,-480.0,0.00019726,2]
[387396975,1758712243627,-480.0,0.00019726,2]
[387396976,1758712243636,-480.0,0.00019726,2]
[387396977,1758712243647,-480.0,0.00019726,2]
[387396978,1758712243657,-480.0,0.00019726,2]
[387396979,1758712243667,-480.0,0.00019726,2]
[387396980,1758712243677,-480.0,0.00019726,2]
[387396981,1758712243687,-498.35,0.00019726,2]
[387396982,1758712243697,-821.99,0.00019726,2]
[387396983,1758712243706,-480.0,0.00019726,2]
[387396984,1758712243716,-840.33,0.00019726,2]
[387396985,1758712243725,-815.98,0.00019726,2]
[387396986,1758712243734,-480.0,0.00019726,2]
[387396987,1758712243744,-220.14755957,0.00019726,2]
[387396988,1758712243753,-544.68,0.00019726,2]
[387396989,1758712243763,-932.22,0.00019726,2]
[387396990,1758712243772,-480.0,0.00019726,2]
[387396991,1758712243782,-480.0,0.00019726,2]
[387396992,1758712243791,-208.65849592,0.00019726,2]
[387396993,1758712243801,-480.0,0.00019726,2]
[387396994,1758712243811,-480.0,0.00019726,2]
[387396995,1758712243819,-480.0,0.00019726,2]
[387396996,1758712243832,-480.0,0.00019726,2]
[387396997,1758712243841,-756.16,0.00019726,2]
[387396998,1758712243851,-480.0,0.00019726,2]
[387396999,1758712243860,-480.0,0.00019726,2]
[387397000,1758712243870,-480.0,0.00019726,2]
[387397001,1758712243880,-480.0,0.00019726,2]
[387397003,1758712243894,-1726.74,0.00019726,2]
[387397004,1758712243904,-733.22,0.00019726,2]
[387397005,1758712243914,-480.0,0.00019726,2]
[387397006,1758712243923,-480.0,0.00019726,2]
[387397007,1758712243933,-716.15,0.00019726,2]
[387397008,1758712243942,-480.0,0.00019726,2]
[387397009,1758712243951,-480.0,0.00019772,2]
[387397010,1758712243961,-480.0,0.00019772,2]
[387397011,1758712243970,-480.0,0.00019772,2]
[387397012,1758712243979,-1000.0,0.000198,2]
[387397013,1758712243989,-151.0,0.000199,2]
[387397014,1758712243999,-1000.0,0.000199,2]
[387397015,1758712244009,-2502.19694338,0.000199,2]
[387397016,1758712244020,-1000.0,0.00019921,2]
[387397017,1758712244031,-334.27914084,0.0002,2]
[387397018,1758712244042,-480.0,0.0002,2]
[387397019,1758712244052,-480.0,0.0002,2]
[387397020,1758712244062,-480.0,0.0002,2]
[387397021,1758712244072,-480.0,0.0002,2]
[387397022,1758712244081,-480.0,0.0002,2]
[387397023,1758712244091,-1805.56536732,0.0002,2]
[387397024,1758712244100,-504.27,0.0002,2]
[387397025,1758712244109,-480.0,0.0002,2]
[387397026,1758712244118,-480.0,0.0002,2]
[387397027,1758712244127,-480.0,0.0002,2]
[387397028,1758712244138,-480.0,0.0002,2]
[387397029,1758712244147,-480.0,0.0002,2]
[387397030,1758712244157,-480.0,0.0002,2]
[387397031,1758712244167,-480.0,0.0002,2]
[387397032,1758712244176,-480.0,0.0002,2]
[387397033,1758712244186,-480.0,0.0002,2]
[387397034,1758712244195,-480.0,0.0002,2]
[387397035,1758712244205,-523.97,0.0002,2]
[387397036,1758712244215,-480.0,0.0002,2]
[387397037,1758712244224,-480.0,0.0002,2]
[387397038,1758712244234,-480.0,0.0002,2]
[387397039,1758712244243,-480.0,0.0002,2]
[387397040,1758712244253,-480.0,0.0002,2]
[387397041,1758712244262,-480.0,0.0002,2]
[387397042,1758712244271,-2260.39,0.0002,2]
[387397043,1758712244281,-480.0,0.0002,2]
[387397044,1758712244290,-480.0,0.0002,2]
[387397045,1758712244299,-1901.05,0.0002,2]
[387397046,1758712244308,-480.0,0.0002,2]
[387397047,1758712244318,-841.36,0.0002,2]
[387397048,1758712244327,-480.0,0.0002,2]
[387397049,1758712244336,-480.0,0.0002,2]
[387397050,1758712244345,-974.9,0.0002,2]
[387397051,1758712244354,-152.061662,0.0002,2]
[387397052,1758712244363,-3459.54,0.0002,2]
[387397053,1758712244373,-480.0,0.0002,2]
[387397054,1758712244382,-480.0,0.0002,2]
[387397055,1758712244391,-1848.29,0.0002,2]
[387397056,1758712244400,-480.0,0.0002,2]
[387397057,1758712244410,-480.0,0.0002,2]
[387397058,1758712244419,-480.0,0.0002,2]
[387397059,1758712244430,-480.0,0.0002,2]
[387397060,1758712244440,-151.0,0.0002,2]
[387397061,1758712244450,-480.0,0.0002,2]
[387397062,1758712244459,-156.944736,0.0002,2]
[387397063,1758712244468,-480.0,0.0002,2]
[387397064,1758712244478,-151.0,0.0002,2]
[387397065,1758712244487,-480.0,0.0002,2]
[387397066,1758712244496,-152.898962,0.0002,2]
[387397067,1758712244506,-160.995213,0.0002,2]
[387397068,1758712244515,-480.0,0.0002,2]
[387397069,1758712244524,-151.0,0.0002,2]
[387397070,1758712244534,-480.0,0.0002,2]
[387397071,1758712244543,-480.0,0.0002,2]
[387397072,1758712244553,-480.0,0.0002,2]
[387397073,1758712244562,-546.04162038,0.0002,2]
[387397074,1758712244572,-480.0,0.0002,2]
[387397075,1758712244581,-480.0,0.0002,2]
[387397076,1758712244590,-480.0,0.0002,2]
[387397077,1758712244599,-480.0,0.0002,2]
[387397078,1758712244609,-498.35,0.0002,2]
[387397079,1758712244618,-821.99,0.0002,2]
[387397080,1758712244627,-480.0,0.0002,2]
[387397081,1758712244636,-840.33,0.0002,2]
[387397082,1758712244719,-815.98,0.0002,2]
[387397083,1758712244730,-480.0,0.0002,2]
[387397084,1758712244739,-544.68,0.0002,2]
[387397085,1758712244750,-932.22,0.0002,2]
[387397086,1758712244759,-480.0,0.0002,2]
[387397087,1758712244769,-480.0,0.0002,2]
[387397088,1758712244779,-480.0,0.0002,2]
[387397089,1758712244788,-480.0,0.0002,2]
[387397090,1758712244798,-480.0,0.0002,2]
[387397091,1758712244808,-480.0,0.0002,2]
[387397092,1758712244817,-756.16,0.0002,2]
[387397093,1758712244827,-151.0,0.0002,2]
[387397094,1758712244838,-151.0,0.0002,2]
[387397095,1758712244848,-480.0,0.0002,2]
[387397096,1758712244857,-480.0,0.0002,2]
[387397097,1758712244867,-480.0,0.0002,2]
[387397098,1758712244876,-1726.74,0.0002,2]
[387397099,1758712244885,-733.22,0.0002,2]
[387397100,1758712244895,-480.0,0.0002,2]
[387397101,1758712244904,-480.0,0.0002,2]
[387397102,1758712244915,-716.15,0.0002,2]
[387397103,1758712244924,-151.0,0.0002,2]
[387397104,1758712244934,-151.0,0.0002,2]
[387397105,1758712244943,-480.0,0.0002,2]
[387397106,1758712244953,-1000.0,0.00020021,2]
[387397107,1758712244962,-1000.0,0.00020021,2]
[387397108,1758712244971,-1000.0,0.00020021,2]
[387397109,1758712244980,-1000.0,0.00020021,2]
[387397110,1758712244990,-480.0,0.00020046,2]
[387397111,1758712244999,-480.0,0.00020046,2]
[387397112,1758712245009,-480.0,0.00020046,2]
[387397113,1758712245018,-1504.86903536,0.00020125,2]
[387397114,1758712245028,-151.0,0.000202,3]
[387397115,1758712245037,-151.0,0.000202,4]
[387397116,1758712245047,-480.0,0.00020273,2]
[387397117,1758712245056,-340.38828872,0.00020273,2]
[387397118,1758712245065,-480.0,0.00020273,2]
[387397119,1758712245075,-499.39686674,0.00020273,2]
[387397120,1758712245083,-480.0,0.00020273,2]
[387397121,1758712245093,-504.27,0.00020273,2]
[387397122,1758712245102,-480.0,0.00020273,2]
[387397123,1758712245111,-480.0,0.00020273,2]
[387397124,1758712245120,-480.0,0.00020273,2]
[387397125,1758712245129,-480.0,0.00020273,2]
[387397126,1758712245138,-480.0,0.00020273,2]
[387397127,1758712245149,-480.0,0.00020273,2]
[387397128,1758712245160,-480.0,0.00020273,2]
[387397129,1758712245170,-480.0,0.00020273,2]
[387397130,1758712245179,-480.0,0.00020273,2]
[387397131,1758712245189,-480.0,0.00020273,2]
[387397132,1758712245198,-523.97,0.00020273,2]
[387397133,1758712245207,-480.0,0.00020273,2]
[387397134,1758712245216,-480.0,0.00020273,2]
[387397135,1758712245225,-480.0,0.00020273,2]
[387397136,1758712245235,-480.0,0.00020273,2]
[387397137,1758712245244,-411.07,0.00020273,2]
[387397138,1758712245254,-2260.39,0.00020273,2]